fUSD/lending_fUSD_20260527
["ID","MTS","AMOUNT","RATE_DAILY","PERIOD"]
[423087699,1779831107000,-815.4069642,0.00039929,2]
[423087702,1779831107000,-518.12647372,0.00039941,30]
[423087696,1779831107000,-271.9,0.000399,120]
[423087700,1779831107000,-1437.67899428,0.00039937,30]
[423087703,1779831107000,-150.0,0.00039941,30]
[423087704,1779831107000,-12891.78016505,0.00039941,30]
[423087701,1779831107000,-150.0,0.00039941,30]
[423087705,1779831107000,-238.96,0.0003995,120]
[423087706,1779831107000,-271.9,0.0003995,120]
[423087688,1779831107000,-210.09156922,0.00039885,120]
[423087709,1779831107000,-464.0,0.00039986,90]
[423087698,1779831107000,-1455.41,0.00039905,2]
[423087684,1779831107000,-218.20306974,0.00039885,120]
[423087673,1779831107000,-153.2,0.00039863,120]
[423087695,1779831107000,-161.5267418,0.000399,120]
[423087711,1779831107000,-2084.32470819,0.00039995,120]
[423087665,1779831107000,-1554.09,0.000398,120]
[423087668,1779831107000,-1751.29,0.000398,120]
[423087667,1779831107000,-1267.77,0.000398,120]
[423087669,1779831107000,-271.9,0.000398,120]
[423087672,1779831107000,-271.9,0.0003985,120]
[423087670,1779831107000,-396.94,0.00039825,120]
[423087666,1779831107000,-3963.26,0.000398,120]
[423087671,1779831107000,-238.96,0.0003985,120]
[423087686,1779831107000,-170.39924994,0.00039885,120]
[423087678,1779831107000,-170.39924993,0.00039885,120]
[423087676,1779831107000,-1475.41154648,0.0003988,120]
[423087677,1779831107000,-254.52612033,0.00039885,120]
[423087674,1779831107000,-283.9868534,0.0003988,30]
[423087682,1779831107000,-350.0,0.00039885,120]
[423087680,1779831107000,-492.85306973,0.00039885,120]
[423087683,1779831107000,-350.0,0.00039885,120]
[423087679,1779831107000,-193.14847916,0.00039885,120]
[423087681,1779831107000,-350.0,0.00039885,120]
[423087685,1779831107000,-404.52612032,0.00039885,120]
[423087675,1779831107000,-1723.77872558,0.0003988,3]
[423087712,1779831107000,-500.0,0.00039998,31]
[423087710,1779831107000,-3046.24413298,0.0003999,120]
[423087715,1779831107000,-490.97968897,0.00039999,31]
[423087737,1779831107000,-500.0,0.00039999,31]
[423087736,1779831107000,-500.0,0.00039999,31]
[423087739,1779831107000,-500.0,0.00039999,31]
[423087735,1779831107000,-421.96906263,0.00039999,31]
[423087738,1779831107000,-158.17180741,0.00039999,31]
[423087741,1779831107000,-500.0,0.00039999,31]
[423087740,1779831107000,-500.0,0.00039999,31]
[423087745,1779831107000,-620.7172867,0.00039999,31]
[423087746,1779831107000,-500.0,0.00039999,31]
[423087753,1779831107000,-100000.0,0.0004,14]
[423087747,1779831107000,-590.16512048,0.00039999,31]
[423087752,1779831107000,-238.96,0.0004,120]
[423087748,1779831107000,-500.0,0.00039999,31]
[423087750,1779831107000,-500.0,0.00039999,31]
[423087755,1779831107000,-253.38365484,0.0004,7]
[423087754,1779831107000,-1548.0,0.0004,30]
[423087749,1779831107000,-500.0,0.00039999,31]
[423087756,1779831107000,-673.88660898,0.0004,7]
[423087757,1779831107000,-250.0,0.0004,7]
[423087758,1779831107000,-1799.999999,0.0004,2]
[423087708,1779831107000,-75447.16130649,0.0003997,2]
[423087734,1779831107000,-465.22567466,0.00039999,7]
[423087733,1779831107000,-500.0,0.00039999,50]
[423087751,1779831107000,-500.0,0.00039999,31]
[423087742,1779831107000,-500.0,0.00039999,31]
[423087731,1779831107000,-500.0,0.00039999,50]
[423087714,1779831107000,-72828.44397202,0.00039999,30]
[423087713,1779831107000,-500.0,0.00039998,31]
[423087716,1779831107000,-183.80155446,0.00039999,31]
[423087717,1779831107000,-817.9196516,0.00039999,31]
[423087721,1779831107000,-817.9196516,0.00039999,31]
[423087719,1779831107000,-817.9196516,0.00039999,31]
[423087722,1779831107000,-817.9196516,0.00039999,31]
[423087720,1779831107000,-817.9196516,0.00039999,31]
[423087730,1779831107000,-500.0,0.00039999,30]
[423087718,1779831107000,-817.9196516,0.00039999,31]
[423087724,1779831107000,-1944.83117157,0.00039999,31]
[423087725,1779831107000,-1944.83117157,0.00039999,31]
[423087729,1779831107000,-206.334228,0.00039999,30]
[423087726,1779831107000,-491.87277766,0.00039999,31]
[423087727,1779831107000,-1107.63007,0.00039999,30]
[423087728,1779831107000,-1613.0535,0.00039999,30]
[423087732,1779831107000,-500.0,0.00039999,30]
[423087744,1779831107000,-194.07575607,0.00039999,31]
[423087723,1779831107000,-817.9196516,0.00039999,31]
[423087743,1779831107000,-500.0,0.00039999,31]
[423087798,1779831108000,-586.15739811,0.0004,30]
[423087801,1779831108000,-1046.11009057,0.0004,120]
[423087804,1779831108000,-197.45025653,0.0004,120]
[423087799,1779831108000,-2000.0,0.0004,90]
[423087803,1779831108000,-1013.66811847,0.0004,120]
[423087796,1779831108000,-2448.91297294,0.0004,120]
[423087793,1779831108000,-25792.96763145,0.0004,7]
[423087797,1779831108000,-220.98384695,0.0004,14]
[423087795,1779831108000,-437.66248691,0.0004,7]
[423087789,1779831108000,-250.0,0.0004,10]
[423087800,1779831108000,-3351.75547426,0.0004,61]
[423087783,1779831108000,-30154.95859085,0.0004,2]
[423087794,1779831108000,-155.87788349,0.0004,120]
[423087802,1779831108000,-1015.00545865,0.0004,7]
[423087809,1779831108000,-3000.0,0.0004,7]
[423087807,1779831108000,-237.56644451,0.0004,30]
[423087817,1779831108000,-461.26580555,0.0004,120]
[423087818,1779831108000,-162.17,0.0004,2]
[423087806,1779831108000,-377.27509219,0.0004,120]
[423087808,1779831108000,-194.92518063,0.0004,120]
[423087815,1779831108000,-162.17,0.0004,2]
[423087813,1779831108000,-162.17,0.0004,2]
[423087812,1779831108000,-162.17,0.0004,2]
[423087814,1779831108000,-162.17,0.0004,2]
[423087811,1779831108000,-162.17,0.0004,2]
[423087810,1779831108000,-5270.76898848,0.0004,7]
[423087816,1779831108000,-162.17,0.0004,2]
[423087790,1779831108000,-547.15856,0.0004,10]
[423087805,1779831108000,-183.7008449,0.0004,120]
[423087785,1779831108000,-250.0,0.0004,10]
[423087764,1779831108000,-250.0,0.0004,3]
[423087788,1779831108000,-250.0,0.0004,10]
[423087820,1779831108000,-610.55154094,0.0004,120]
[423087759,1779831108000,-258.6986994,0.0004,7]
[423087760,1779831108000,-29716.05456689,0.0004,2]
[423087761,1779831108000,-1250.0,0.0004,2]
[423087765,1779831108000,-1604.86319401,0.0004,14]
[423087762,1779831108000,-250.0,0.0004,7]
[423087766,1779831108000,-5610.83905704,0.0004,7]
[423087763,1779831108000,-250.0,0.0004,5]
[423087767,1779831108000,-106549.72379126,0.0004,7]
[423087769,1779831108000,-78287.7943394,0.0004,7]
[423087772,1779831108000,-51585.9352629,0.0004,7]
[423087768,1779831108000,-1550.84373141,0.0004,7]
[423087775,1779831108000,-1586.56086002,0.0004,2]
[423087782,1779831108000,-515.82567029,0.0004,2]
[423087770,1779831108000,-127800.0,0.0004,7]
[423087778,1779831108000,-516.43919373,0.0004,5]
[423087771,1779831108000,-250.0,0.0004,2]
[423087779,1779831108000,-319.73256718,0.0004,2]
[423087776,1779831108000,-4178.24940648,0.0004,2]
[423087773,1779831108000,-26291.0291528,0.0004,2]
[423087774,1779831108000,-396.55667233,0.0004,2]
[423087781,1779831108000,-10867.4858721,0.0004,2]
[423087791,1779831108000,-3518.86428869,0.0004,5]
[423087792,1779831108000,-12896.48381573,0.0004,7]
[423087780,1779831108000,-164.06494077,0.0004,2]
[423087784,1779831108000,-250.0,0.0004,10]
[423087786,1779831108000,-250.0,0.0004,10]
[423087787,1779831108000,-250.0,0.0004,10]
[423087777,1779831108000,-1708.84332176,0.0004,2]
[423087830,1779831108000,-2000.0,0.0004,120]
[423087867,1779831108000,-6677.90422569,0.0004,120]
[423087819,1779831108000,-162.23,0.0004,2]
[423087853,1779831108000,-1325.9139288,0.0004,120]
[423087858,1779831108000,-2175.0,0.0004,20]
[423087869,1779831108000,-842.5027037,0.0004,30]
[423087868,1779831108000,-1308.79089222,0.0004,30]
[423087857,1779831108000,-541.73497644,0.0004,30]
[423087859,1779831108000,-834.54145326,0.0004,30]
[423087864,1779831108000,-1000.0,0.0004,120]
[423087865,1779831108000,-527.7,0.0004,120]
[423087863,1779831108000,-3000.0,0.0004,30]
[423087861,1779831108000,-1887.98418854,0.0004,14]
[423087866,1779831108000,-789.09278724,0.0004,120]
[423087862,1779831108000,-385.37751691,0.0004,120]
[423087860,1779831108000,-1172.72798962,0.0004,120]
[423087848,1779831108000,-1198.47771341,0.0004,60]
[423087870,1779831108000,-1857.4598871,0.0004,30]
[423087874,1779831108000,-1628.85236737,0.0004,120]
[423087873,1779831108000,-656.63926156,0.0004,120]
[423087875,1779831108000,-613.38560393,0.0004,120]
[423087881,1779831108000,-377.13932274,0.0004,120]
[423087872,1779831108000,-3331.37418212,0.0004,120]
[423087878,1779831108000,-636.03554909,0.0004,30]
[423087871,1779831108000,-1765.37540693,0.0004,120]
[423087877,1779831108000,-3973.07682574,0.0004,120]
[423087876,1779831108000,-669.02552807,0.0004,120]
[423087880,1779831108000,-1895.48722496,0.0004,120]
[423087879,1779831108000,-1753.75342398,0.0004,120]
[423087821,1779831108000,-151.0,0.0004,120]
[423087883,1779831108000,-1232.483,0.0004,120]
[423087882,1779831108000,-930.52568236,0.0004,120]
[423087849,1779831108000,-1715.4416672,0.0004,30]
[423087884,1779831108000,-1203111.36480642,0.0004,30]
[423087852,1779831108000,-807.7712362,0.0004,60]
[423087850,1779831108000,-364.25663632,0.0004,15]
[423087828,1779831108000,-2000.0,0.0004,120]
[423087829,1779831108000,-2000.0,0.0004,120]
[423087822,1779831108000,-238.9,0.0004,120]
[423087825,1779831108000,-1851.613904,0.0004,120]
[423087823,1779831108000,-159.17,0.0004,120]
[423087826,1779831108000,-1336.42557696,0.0004,120]
[423087827,1779831108000,-283.0,0.0004,120]
[423087842,1779831108000,-1060.81612472,0.0004,20]
[423087831,1779831108000,-2000.0,0.0004,120]
[423087833,1779831108000,-151.0,0.0004,120]
[423087834,1779831108000,-5612.0,0.0004,120]
[423087832,1779831108000,-2644.94529017,0.0004,5]
[423087835,1779831108000,-2400.0,0.0004,120]
[423087836,1779831108000,-477.12749073,0.0004,30]
[423087824,1779831108000,-420.8587,0.0004,30]
[423087838,1779831108000,-326.48804092,0.0004,120]
[423087839,1779831108000,-240.61800527,0.0004,60]
[423087846,1779831108000,-540.0,0.0004,30]
[423087847,1779831108000,-1912.35026742,0.0004,30]
[423087855,1779831108000,-2038.78565878,0.0004,120]
[423087854,1779831108000,-318.0,0.0004,14]
[423087843,1779831108000,-266.04694875,0.0004,30]
[423087856,1779831108000,-415.60752961,0.0004,60]
[423087845,1779831108000,-180.01353251,0.0004,120]
[423087844,1779831108000,-398.48623794,0.0004,120]
[423087837,1779831108000,-4040.0285632,0.0004,120]
[423087841,1779831108000,-294.39883939,0.0004,120]
[423087840,1779831108000,-218.42293971,0.0004,30]
[423087851,1779831108000,-1046.88075121,0.0004,30]
[423087926,1779831109000,-372.0,0.0004001,120]
[423087929,1779831109000,-173.48343259,0.0004003,120]
[423087925,1779831109000,-271.9,0.0004,120]
[423087934,1779831109000,-162.29983025,0.0004003,120]
[423087923,1779831109000,-500.0,0.0004,120]
[423087915,1779831109000,-500.0,0.0004,120]
[423087913,1779831109000,-500.0,0.0004,120]
[423087911,1779831109000,-500.0,0.0004,120]
[423087916,1779831109000,-500.0,0.0004,120]
[423087914,1779831109000,-500.0,0.0004,120]
[423087912,1779831109000,-500.0,0.0004,120]
[423087917,1779831109000,-500.0,0.0004,120]
[423087931,1779831109000,-1098.56971816,0.0004003,120]
[423087930,1779831109000,-3070.91931117,0.0004003,120]
[423087927,1779831109000,-1000.0,0.00040018,60]
[423087928,1779831109000,-1000.0,0.00040027,120]
[423087933,1779831109000,-325.4765525,0.0004003,120]
[423087932,1779831109000,-156.93853116,0.0004003,120]
[423087936,1779831109000,-163.1425809,0.0004003,120]
[423087946,1779831109000,-2000.0,0.000401,30]
[423087935,1779831109000,-315.23259852,0.0004003,120]
[423087938,1779831109000,-238.96,0.0004005,120]
[423087937,1779831109000,-150.0,0.00040035,120]
[423087940,1779831109000,-507.0,0.0004006,17]
[423087939,1779831109000,-271.9,0.0004005,120]
[423087921,1779831109000,-500.0,0.0004,120]
[423087941,1779831109000,-239.182777,0.000401,120]
[423087924,1779831109000,-642.88775043,0.0004,120]
[423087919,1779831109000,-500.0,0.0004,120]
[423087898,1779831109000,-1581.06390646,0.0004,7]
[423087922,1779831109000,-500.0,0.0004,120]
[423087944,1779831109000,-2160.44918455,0.000401,120]
[423087895,1779831109000,-202.11,0.0004,30]
[423087894,1779831109000,-150.0,0.0004,7]
[423087885,1779831109000,-2028.0,0.0004,30]
[423087887,1779831109000,-1896.18223174,0.0004,120]
[423087889,1779831109000,-169920.1976802,0.0004,7]
[423087890,1779831109000,-50000.0,0.0004,120]
[423087893,1779831109000,-1000.0,0.0004,30]
[423087892,1779831109000,-313.03722496,0.0004,120]
[423087886,1779831109000,-613.87,0.0004,7]
[423087888,1779831109000,-251.56666997,0.0004,120]
[423087891,1779831109000,-1000.0,0.0004,120]
[423087897,1779831109000,-30323.21872233,0.0004,7]
[423087896,1779831109000,-197.25237232,0.0004,7]
[423087899,1779831109000,-210.7,0.0004,120]
[423087901,1779831109000,-1000.0,0.0004,120]
[423087903,1779831109000,-1599.28580842,0.0004,30]
[423087908,1779831109000,-3340.16,0.0004,120]
[423087902,1779831109000,-11045.12934066,0.0004,120]
[423087900,1779831109000,-13169.74720851,0.0004,90]
[423087907,1779831109000,-159105.0,0.0004,30]
[423087905,1779831109000,-1100.0,0.0004,15]
[423087906,1779831109000,-13099.90203028,0.0004,7]
[423087904,1779831109000,-177.82,0.0004,30]
[423087918,1779831109000,-500.0,0.0004,120]
[423087910,1779831109000,-1727.83,0.0004,120]
[423087909,1779831109000,-860.5665398,0.0004,30]
[423087920,1779831109000,-500.0,0.0004,120]
[423087945,1779831109000,-1000.0,0.000401,120]
[423088002,1779831109000,-156.93853116,0.00040304,120]
[423087942,1779831109000,-2000.0,0.000401,25]
[423087978,1779831109000,-150.0,0.00040195,120]
[423087982,1779831109000,-271.9,0.000402,120]
[423087979,1779831109000,-2000.0,0.000402,25]
[423087980,1779831109000,-2000.0,0.000402,26]
[423087981,1779831109000,-2000.0,0.000402,30]
[423087983,1779831109000,-5123.4923085,0.0004021,120]
[423087985,1779831109000,-271.9,0.0004025,120]
[423087986,1779831109000,-150.0,0.00040257,120]
[423087988,1779831109000,-1548.0,0.00040274,30]
[423087990,1779831109000,-572.18953623,0.00040295,120]
[423087984,1779831109000,-150.0,0.0004023,120]
[423087989,1779831109000,-4201.46611221,0.0004028,90]
[423087994,1779831109000,-585.71152035,0.000403,30]
[423087987,1779831109000,-2421.7161699,0.0004026,120]
[423087992,1779831109000,-2000.0,0.000403,26]
[423087991,1779831109000,-2000.0,0.000403,25]
[423087993,1779831109000,-2000.0,0.000403,30]
[423087996,1779831109000,-233943.86,0.000403,10]
[423087995,1779831109000,-1158.94,0.000403,120]
[423088005,1779831109000,-315.23259852,0.00040304,120]
[423087997,1779831109000,-3210.14,0.000403,10]
[423087998,1779831109000,-271.9,0.000403,120]
[423088004,1779831109000,-162.29983025,0.00040304,120]
[423088003,1779831109000,-325.4765525,0.00040304,120]
[423088001,1779831109000,-1098.56971816,0.00040304,120]
[423087999,1779831109000,-173.48343259,0.00040304,120]
[423088006,1779831109000,-163.1425809,0.00040304,120]
[423087977,1779831109000,-150.0,0.0004018,120]
[423087975,1779831109000,-156.0,0.00040174,120]
[423088000,1779831109000,-3070.91931117,0.00040304,120]
[423087974,1779831109000,-153.0,0.00040174,120]
[423087976,1779831109000,-158.0,0.00040174,120]
[423087949,1779831109000,-150.0,0.00040106,120]
[423087948,1779831109000,-271.9,0.000401,120]
[423087958,1779831109000,-250.0,0.00040172,2]
[423087947,1779831109000,-177.0,0.000401,120]
[423087957,1779831109000,-300.0,0.00040172,30]
[423087954,1779831109000,-271.9,0.0004015,120]
[423087950,1779831109000,-300.0,0.0004012,30]
[423087952,1779831109000,-150.0,0.00040138,120]
[423087951,1779831109000,-150.0,0.00040129,120]
[423087955,1779831109000,-150.0,0.00040161,120]
[423087956,1779831109000,-150.0,0.00040166,120]
[423087953,1779831109000,-150.0,0.00040143,120]
[423087970,1779831109000,-151.0,0.00040174,120]
[423087943,1779831109000,-1332.73,0.000401,27]
[423087959,1779831109000,-250.0,0.00040172,2]
[423087960,1779831109000,-250.0,0.00040172,2]
[423087973,1779831109000,-160.0,0.00040174,120]
[423087969,1779831109000,-157.0,0.00040174,120]
[423087967,1779831109000,-159.0,0.00040172,120]
[423087964,1779831109000,-500.0,0.00040172,120]
[423087971,1779831109000,-153.0,0.00040174,120]
[423087966,1779831109000,-159.0,0.00040172,120]
[423087963,1779831109000,-2000.0,0.00040172,120]
[423087968,1779831109000,-159.0,0.00040172,120]
[423087962,1779831109000,-2000.0,0.00040172,120]
[423087972,1779831109000,-154.0,0.00040174,120]
[423087961,1779831109000,-540.0,0.00040172,7]
[423087965,1779831109000,-157.0,0.00040172,120]
[423088034,1779831110000,-445.82721275,0.000405,120]
[423088033,1779831110000,-2000.0,0.000405,30]
[423088031,1779831110000,-2400.0,0.000405,120]
[423088037,1779831110000,-271.9,0.000405,120]
[423088035,1779831110000,-670.49397252,0.000405,120]
[423088038,1779831110000,-159.70816046,0.00040507,60]
[423088039,1779831110000,-500.0,0.00040507,60]
[423088041,1779831110000,-1548.0,0.00040548,30]
[423088040,1779831110000,-579.95153286,0.00040527,120]
[423088036,1779831110000,-177.0,0.000405,120]
[423088049,1779831110000,-325.4765525,0.00040578,120]
[423088047,1779831110000,-1098.56971816,0.00040578,120]
[423088044,1779831110000,-250.0,0.00040567,78]
[423088045,1779831110000,-173.48343259,0.00040578,120]
[423088050,1779831110000,-315.23259852,0.00040578,120]
[423088042,1779831110000,-372.0,0.0004055,120]
[423088054,1779831110000,-153.0,0.000406,120]
[423088053,1779831110000,-2000.0,0.000406,30]
[423088048,1779831110000,-156.93853116,0.00040578,120]
[423088052,1779831110000,-161.6889625,0.00040578,120]
[423088051,1779831110000,-163.1425809,0.00040578,120]
[423088056,1779831110000,-271.9,0.0004065,120]
[423088046,1779831110000,-3070.91931117,0.00040578,120]
[423088043,1779831110000,-271.9,0.0004055,120]
[423088023,1779831110000,-271.9,0.0004045,120]
[423088027,1779831110000,-2174.11,0.000405,90]
[423088059,1779831110000,-698.45,0.00040661,120]
[423088007,1779831110000,-2000.0,0.00040313,120]
[423088017,1779831110000,-3948.59,0.000404,120]
[423088009,1779831110000,-150.0,0.00040318,120]
[423088008,1779831110000,-6323.3,0.00040315,2]
[423088010,1779831110000,-271.9,0.0004035,120]
[423088012,1779831110000,-151.0,0.00040397,60]
[423088011,1779831110000,-156.98,0.00040387,120]
[423088016,1779831110000,-3948.592,0.000404,120]
[423088015,1779831110000,-3948.592,0.000404,120]
[423088032,1779831110000,-245.4723524,0.000405,60]
[423088013,1779831110000,-1440.235,0.000404,120]
[423088018,1779831110000,-2000.0,0.000404,30]
[423088020,1779831110000,-271.9,0.000404,120]
[423088022,1779831110000,-500.0,0.00040423,60]
[423088019,1779831110000,-150.0,0.000404,120]
[423088030,1779831110000,-2000.0,0.000405,120]
[423088029,1779831110000,-2000.0,0.000405,120]
[423088028,1779831110000,-2000.0,0.000405,120]
[423088026,1779831110000,-4501.62707995,0.000405,120]
[423088025,1779831110000,-181.9418865,0.00040498,2]
[423088024,1779831110000,-150.0,0.00040468,120]
[423088021,1779831110000,-500.0,0.00040423,60]
[423088014,1779831110000,-1440.23,0.000404,120]
[423088055,1779831110000,-271.9,0.000406,120]
[423088060,1779831110000,-698.45,0.00040661,120]
[423088086,1779831110000,-1548.0,0.00040822,30]
[423088087,1779831110000,-250.0,0.00040828,84]
[423088084,1779831110000,-271.9,0.000408,120]
[423088085,1779831110000,-775.94000356,0.00040819,2]
[423088091,1779831110000,-3070.91931117,0.00040852,120]
[423088093,1779831110000,-156.93853116,0.00040852,120]
[423088096,1779831110000,-163.1425809,0.00040852,120]
[423088094,1779831110000,-325.4765525,0.00040852,120]
[423088095,1779831110000,-315.23259852,0.00040852,120]
[423088092,1779831110000,-1098.56971816,0.00040852,120]
[423088089,1779831110000,-271.9,0.0004085,120]
[423088097,1779831110000,-1000.0,0.00040859,120]
[423088099,1779831110000,-250.0,0.00040877,85]
[423088098,1779831110000,-934.66,0.00040861,120]
[423088104,1779831110000,-500.0,0.000409,120]
[423088103,1779831110000,-2000.0,0.000409,30]
[423088102,1779831110000,-3859.45266335,0.000409,30]
[423088106,1779831110000,-2934.92781016,0.000409,30]
[423088108,1779831110000,-150.0,0.00040906,120]
[423088107,1779831110000,-271.9,0.000409,120]
[423088105,1779831110000,-177.0,0.000409,120]
[423088066,1779831110000,-403266.0531174,0.000407,12]
[423088100,1779831110000,-150.0,0.00040891,120]
[423088088,1779831110000,-1000.0,0.0004084,60]
[423088101,1779831110000,-22083.0,0.000409,120]
[423088082,1779831110000,-3182.46162357,0.000408,120]
[423088057,1779831110000,-999.0,0.00040658,120]
[423088083,1779831110000,-10000.0,0.000408,60]
[423088058,1779831110000,-698.45,0.00040661,120]
[423088061,1779831110000,-698.45,0.00040661,120]
[423088065,1779831110000,-2000.0,0.000407,30]
[423088062,1779831110000,-2000000.0,0.0004069,120]
[423088063,1779831110000,-59498.81792561,0.0004069,30]
[423088067,1779831110000,-271.9,0.000407,120]
[423088069,1779831110000,-250.0,0.00040744,82]
[423088071,1779831110000,-271.9,0.0004075,120]
[423088070,1779831110000,-1087.88937109,0.0004075,120]
[423088064,1779831110000,-3021.89,0.000407,120]
[423088073,1779831110000,-198.54492235,0.00040799,120]
[423088078,1779831110000,-2000.0,0.000408,30]
[423088077,1779831110000,-1310.69,0.000408,120]
[423088072,1779831110000,-6971.15283029,0.00040799,120]
[423088074,1779831110000,-1013.85417317,0.000408,10]
[423088081,1779831110000,-1351.0,0.000408,14]
[423088076,1779831110000,-1831.71,0.000408,120]
[423088075,1779831110000,-3706.32,0.000408,120]
[423088080,1779831110000,-408.22,0.000408,30]
[423088090,1779831110000,-173.48343259,0.00040852,120]
[423088079,1779831110000,-419.0,0.000408,5]
[423088068,1779831110000,-775.94000356,0.00040734,2]
[423088147,1779831111000,-1000000.0,0.00041,120]
[423088139,1779831111000,-169.13,0.00041,14]
[423088148,1779831111000,-1000000.0,0.00041,120]
[423088151,1779831111000,-1000000.0,0.00041,120]
[423088149,1779831111000,-1000000.0,0.00041,120]
[423088146,1779831111000,-1000000.0,0.00041,120]
[423088141,1779831111000,-1000000.0,0.00041,120]
[423088143,1779831111000,-499999.0,0.00041,120]
[423088140,1779831111000,-7831.14213,0.00041,28]
[423088137,1779831111000,-25000.0,0.00041,20]
[423088154,1779831111000,-3102.34948791,0.00041,30]
[423088145,1779831111000,-10231.47980157,0.00041,30]
[423088150,1779831111000,-1000000.0,0.00041,120]
[423088164,1779831111000,-500.0,0.00041,45]
[423088155,1779831111000,-342.3009721,0.00041,120]
[423088153,1779831111000,-2000.0,0.00041,90]
[423088152,1779831111000,-107914.0,0.00041,120]
[423088157,1779831111000,-174.91802593,0.00041,30]
[423088167,1779831111000,-800.0,0.00041,45]
[423088156,1779831111000,-930.0,0.00041,30]
[423088165,1779831111000,-367.57567621,0.00041,45]
[423088162,1779831111000,-2000.0,0.00041,120]
[423088158,1779831111000,-151.0,0.00041,120]
[423088163,1779831111000,-2887.28659552,0.00041,30]
[423088161,1779831111000,-151.0,0.00041,120]
[423088132,1779831111000,-500.0,0.00040999,45]
[423088144,1779831111000,-265000.0,0.00041,120]
[423088134,1779831111000,-50000.0,0.00041,72]
[423088111,1779831111000,-400.0,0.0004092,30]
[423088131,1779831111000,-151.0,0.00040999,30]
[423088159,1779831111000,-167.96331753,0.00041,120]
[423088110,1779831111000,-250.0,0.00040909,86]
[423088109,1779831111000,-250.0,0.00040908,86]
[423088112,1779831111000,-250.0,0.00040942,86]
[423088116,1779831111000,-1068.11,0.00040999,30]
[423088117,1779831111000,-1555.5,0.00040999,30]
[423088114,1779831111000,-250.0,0.00040974,87]
[423088119,1779831111000,-198.97225456,0.00040999,30]
[423088113,1779831111000,-271.9,0.0004095,120]
[423088118,1779831111000,-191.87295522,0.00040999,45]
[423088115,1779831111000,-250.0,0.00040986,87]
[423088120,1779831111000,-200.0,0.00040999,45]
[423088133,1779831111000,-500.0,0.00040999,30]
[423088122,1779831111000,-500.0,0.00040999,45]
[423088125,1779831111000,-500.0,0.00040999,45]
[423088121,1779831111000,-200.0,0.00040999,30]
[423088124,1779831111000,-7461.45954626,0.00040999,45]
[423088127,1779831111000,-7737.53354951,0.00040999,30]
[423088130,1779831111000,-670.58624095,0.00040999,30]
[423088128,1779831111000,-151.0,0.00040999,45]
[423088129,1779831111000,-500.0,0.00040999,30]
[423088126,1779831111000,-646.65982734,0.00040999,45]
[423088138,1779831111000,-212.0,0.00041,7]
[423088136,1779831111000,-441.16765548,0.00041,5]
[423088142,1779831111000,-999999.0,0.00041,120]
[423088135,1779831111000,-58039.48289528,0.00041,5]
[423088123,1779831111000,-500.0,0.00040999,30]
[423088160,1779831111000,-151.0,0.00041,120]
[423088192,1779831111000,-863.2407696,0.00041,60]
[423088168,1779831111000,-800.0,0.00041,45]
[423088193,1779831111000,-2024.08543142,0.00041,120]
[423088197,1779831111000,-471.3155837,0.00041,120]
[423088199,1779831111000,-3815.12112914,0.00041,120]
[423088201,1779831111000,-1000.0,0.00041,120]
[423088205,1779831111000,-1000000.0,0.00041,120]